fUST/lending_fUST_20260114
["ID","MTS","AMOUNT","RATE_DAILY","PERIOD"]
[401882752,1768395053038,-490.347103,0.000249,7]
[401882754,1768395053048,-487.891031,0.000249,7]
[401882756,1768395053058,-487.891031,0.000249,7]
[401882758,1768395053068,-151.0,0.000249,7]
[401882760,1768395053077,-487.891031,0.000249,7]
[401882762,1768395053087,-487.891031,0.000249,7]
[401882764,1768395053097,-490.971226,0.000249,7]
[401882766,1768395053107,-490.971226,0.000249,7]
[401882768,1768395053116,-490.971226,0.000249,7]
[401882770,1768395053126,-490.971226,0.000249,7]
[401882772,1768395053135,-505.094065,0.000249,7]
[401882774,1768395053145,-505.094065,0.000249,7]
[401882776,1768395053154,-505.094065,0.000249,7]
[401882778,1768395053163,-505.094065,0.000249,7]
[401882780,1768395053172,-151.0,0.000249,7]
[401882782,1768395053182,-424.867584,0.000249,7]
[401882784,1768395053191,-424.867584,0.000249,7]
[401882786,1768395053200,-424.867584,0.000249,7]
[401882788,1768395053209,-169.388304,0.000249,7]
[401882790,1768395053219,-424.867584,0.000249,7]
[401882791,1768395053228,-151.0,0.000249,7]
[401882794,1768395053238,-151.0,0.000249,7]
[401882796,1768395053247,-227.437478,0.000249,7]
[401882797,1768395053256,-151.0,0.000249,7]
[401882799,1768395053265,-151.0,0.000249,7]
[401882801,1768395053274,-151.0,0.000249,7]
[401882803,1768395053283,-151.0,0.000249,7]
[401882805,1768395053292,-151.0,0.000249,7]
[401882807,1768395053301,-653058.728757,0.000249,2]
[401882809,1768395053311,-1000.0,0.00024927,2]
[401882811,1768395053320,-455.0,0.00024932,7]
[401882813,1768395053330,-800.0,0.00024943,2]
[401882816,1768395053340,-286.26879672,0.00024959,15]
[401882817,1768395053350,-2000.0,0.00024962,2]
[401882820,1768395053360,-378.0,0.00024997,2]
[401882821,1768395053370,-2148.17,0.00025,7]
[401882824,1768395053381,-1041.66666667,0.00025,30]
[401882826,1768395053390,-455.0,0.00025,7]
[401882828,1768395053400,-2000.0,0.0002501,7]
[401882830,1768395053409,-2000.0,0.00025055,7]
[401882832,1768395053419,-378.0,0.00025096,2]
[401882834,1768395053428,-5215.6,0.000251,14]
[401882836,1768395053437,-730.42,0.000251,7]
[401882838,1768395053446,-167.77,0.000251,7]
[401882840,1768395053453,-800.0,0.00025109,7]
[401882842,1768395053462,-800.0,0.00025126,7]
[401882844,1768395053471,-740.38982778,0.00025129,2]
[401882846,1768395053482,-5888.0,0.0002516,2]
[401882848,1768395053492,-250.0,0.00025205,2]
[401882850,1768395053502,-1186.74681137,0.00025205,2]
[401882852,1768395053511,-1250.0,0.00025205,2]
[401882854,1768395053520,-2000.0,0.00025253,7]
[401882856,1768395053530,-800.0,0.00025284,7]
[401882858,1768395053539,-1000.0,0.00025287,7]
[401882860,1768395053549,-336.89,0.000253,7]
[401882862,1768395053559,-339.58,0.000253,7]
[401882864,1768395053569,-800.0,0.00025303,7]
[401882866,1768395053579,-1496.66772099,0.00025318,2]
[401882868,1768395053589,-499.3,0.00025349,7]
[401882870,1768395053599,-1119.07702779,0.00025372,21]
[401882872,1768395053609,-2000.0,0.00025395,7]
[401882874,1768395053619,-555.0,0.000254,120]
[401882876,1768395053629,-1000.0,0.00025437,7]
[401882878,1768395053640,-2000.0,0.0002544,7]
[401882880,1768395053650,-4998.47179483,0.00025453,57]
[401882882,1768395053660,-151.0,0.00025468,7]
[401882884,1768395053670,-151.0,0.00025468,7]
[401882886,1768395053680,-250.203788,0.00025468,7]
[401882888,1768395053689,-1751.929478,0.00025468,7]
[401882890,1768395053699,-250.203788,0.00025468,7]
[401882892,1768395053708,-1751.929478,0.00025468,7]
[401882894,1768395053718,-1751.929478,0.00025468,7]
[401882896,1768395053728,-250.203788,0.00025468,7]
[401882898,1768395053737,-250.203788,0.00025468,7]
[401882899,1768395053746,-1751.929478,0.00025468,7]
[401882900,1768395053756,-151.0,0.00025468,7]
[401882901,1768395053766,-151.0,0.00025468,7]
[401882902,1768395053775,-633.419635,0.00025468,7]
[401882903,1768395053786,-633.419635,0.00025468,7]
[401882904,1768395053795,-160.471335,0.00025468,7]
[401882905,1768395053805,-633.419635,0.00025468,7]
[401882906,1768395053819,-151.0,0.00025468,7]
[401882907,1768395053828,-633.419635,0.00025468,7]
[401882908,1768395053838,-500.0,0.00025521,7]
[401882909,1768395053847,-5888.0,0.00025525,7]
[401882910,1768395053858,-2000.0,0.00025534,7]
[401882911,1768395053867,-2000.0,0.00025544,7]
[401882912,1768395053876,-1032.1,0.00025544,2]
[401882914,1768395053888,-500.0,0.00025597,7]
[401882915,1768395053898,-800.0,0.00025624,7]
[401882916,1768395053907,-767.7842514,0.00025677,2]
[401882917,1768395053916,-38726.83,0.000257,2]
[401882919,1768395053925,-176.527375,0.000257,7]
[401882921,1768395053935,-151.0,0.000257,7]
[401882923,1768395053944,-151.0,0.000257,7]
[401882925,1768395053952,-151.0,0.000257,7]
[401882926,1768395053961,-160.0,0.00025707,3]
[401882928,1768395053971,-800.0,0.00025746,7]
[401882930,1768395053980,-350.0,0.00025753,2]
[401882932,1768395053990,-1350.0,0.00025753,2]
[401882934,1768395053999,-2000.07602471,0.00025769,2]
[401882936,1768395054008,-2000.0,0.0002577,7]
[401882938,1768395054017,-500.0,0.00025773,7]
[401882940,1768395054027,-800.0,0.00025789,7]
[401882942,1768395054036,-2840.37309884,0.00025794,2]
[401882944,1768395054046,-2000.0,0.00025826,7]
[401882946,1768395054055,-2000.0,0.00025837,7]
[401882948,1768395054065,-455.0,0.0002589,7]
[401882950,1768395054074,-2000.0,0.00025958,7]
[401882952,1768395054083,-800.0,0.0002599,7]
[401882954,1768395054093,-1041.66666667,0.00026,7]
[401882956,1768395054103,-1024.9030344,0.00026,2]
[401882958,1768395054112,-800.0,0.00026025,7]
[401882960,1768395054121,-4131.39,0.00026027,2]
[401882962,1768395054131,-500.0,0.00026028,7]
[401882964,1768395054140,-238.0,0.00026055,19]
[401882966,1768395054150,-1000.0,0.0002606,7]
[401882968,1768395054160,-160.0,0.00026084,4]
[401882970,1768395054169,-1000.0,0.00026144,7]
[401882972,1768395054178,-796.19226871,0.00026225,2]
[401882974,1768395054187,-330.0,0.00026227,7]
[401882976,1768395054196,-500.0,0.00026244,7]
[401882978,1768395054205,-800.0,0.00026283,2]
[401882980,1768395054215,-2840.37309884,0.00026285,2]
[401882982,1768395054224,-151.0,0.00026285,7]
[401882984,1768395054233,-154.979883,0.00026285,7]
[401882986,1768395054242,-151.0,0.00026285,7]
[401882988,1768395054251,-151.0,0.00026285,7]
[401882990,1768395054260,-151.0,0.00026285,7]
[401882992,1768395054269,-151.0,0.00026285,7]
[401882994,1768395054279,-151.0,0.00026285,7]
[401882996,1768395054288,-151.0,0.00026285,7]
[401882998,1768395054297,-151.0,0.00026285,7]
[401883000,1768395054306,-500.0,0.00026288,7]
[401883002,1768395054315,-2148.17,0.000263,7]
[401883004,1768395054324,-450.0,0.00026301,2]
[401883006,1768395054333,-1450.0,0.00026301,2]
[401883008,1768395054343,-2000.0,0.00026305,7]
[401883010,1768395054352,-500.0,0.00026317,7]
[401883012,1768395054362,-2840.37309884,0.00026394,2]
[401883014,1768395054371,-5888.0,0.00026399,2]
[401883016,1768395054382,-216.477356,0.00026399,7]
[401883018,1768395054391,-216.477356,0.00026399,7]
[401883020,1768395054401,-428.566923,0.00026399,7]
[401883022,1768395054410,-216.477356,0.00026399,7]
[401883024,1768395054419,-428.566923,0.00026399,7]
[401883026,1768395054428,-216.477356,0.00026399,7]
[401883028,1768395054437,-428.566923,0.00026399,7]
[401883030,1768395054446,-428.566923,0.00026399,7]
[401883032,1768395054455,-163.521598,0.00026399,7]
[401883034,1768395054464,-633.539057,0.00026399,7]
[401883036,1768395054473,-633.539057,0.00026399,7]
[401883038,1768395054482,-633.539057,0.00026399,7]
[401883040,1768395054491,-633.539057,0.00026399,7]
[401883042,1768395054501,-151.0,0.00026399,7]
[401883044,1768395054511,-894.119727,0.00026399,7]
[401883046,1768395054520,-894.119727,0.00026399,7]
[401883048,1768395054530,-894.119727,0.00026399,7]
[401883050,1768395054539,-894.119727,0.00026399,7]
[401883052,1768395054547,-1119.07702779,0.00026411,22]
[401883054,1768395054557,-901.46550708,0.00026428,7]
[401883056,1768395054566,-11434.83681079,0.00026447,2]
[401883058,1768395054575,-160.0,0.00026461,5]
[401883060,1768395054585,-800.0,0.00026477,7]
[401883062,1768395054594,-800.0,0.00026489,7]
[401883064,1768395054603,-500.0,0.00026539,7]
[401883066,1768395054612,-167.77,0.000266,7]
[401883068,1768395054621,-1000.0,0.00026678,7]
[401883070,1768395054630,-5000.0,0.00026698,2]
[401883072,1768395054639,-800.0,0.00026745,7]
[401883074,1768395054648,-1000.0,0.00026749,7]
[401883076,1768395054657,-2840.37309884,0.00026751,2]
[401883078,1768395054667,-825.65138265,0.00026773,2]
[401883080,1768395054676,-1000.0,0.00026789,7]
[401883082,1768395054685,-800.0,0.00026822,7]
[401883084,1768395054694,-500.0,0.00026838,7]
[401883086,1768395054704,-160.0,0.00026839,6]
[401883088,1768395054713,-550.0,0.00026849,2]
[401883090,1768395054723,-1550.0,0.00026849,2]
[401883092,1768395054732,-2000.0,0.00026849,7]
[401883094,1768395054741,-522.88356834,0.00026876,7]
[401883096,1768395054750,-500.0,0.00026876,7]
[401883098,1768395054760,-800.0,0.00026885,7]
[401883100,1768395054769,-2840.37309884,0.00026887,2]
[401883102,1768395054778,-38726.83,0.000269,2]
[401883103,1768395054787,-431.74536,0.000269,7]
[401883105,1768395054796,-431.74536,0.000269,7]
[401883107,1768395054808,-431.74536,0.000269,7]
[401883109,1768395054819,-431.74536,0.000269,7]
[401883112,1768395054830,-183.080684,0.000269,7]
[401883113,1768395054839,-257.762103,0.000269,7]
[401883115,1768395054848,-1617.521004,0.000269,7]
[401883117,1768395054858,-151.0,0.000269,7]
[401883119,1768395054867,-1617.521004,0.000269,7]
[401883121,1768395054878,-151.0,0.000269,7]
[401883123,1768395054887,-261.329291,0.000269,7]
[401883125,1768395054897,-261.329291,0.000269,7]
[401883127,1768395054906,-261.329291,0.000269,7]
[401883129,1768395054916,-261.329291,0.000269,7]
[401883131,1768395054925,-3688.352014,0.000269,7]
[401883132,1768395054934,-3688.352014,0.000269,7]
[401883134,1768395054942,-3688.352014,0.000269,7]
[401883136,1768395054951,-151.0,0.000269,7]
[401883138,1768395054960,-3688.352014,0.000269,7]
[401883140,1768395054969,-151.0,0.000269,7]
[401883142,1768395054979,-591.092287,0.000269,7]
[401883144,1768395054987,-591.092287,0.000269,7]
[401883146,1768395054997,-591.092287,0.000269,7]
[401883148,1768395055006,-591.092287,0.000269,7]
[401883149,1768395055015,-151.0,0.000269,7]
[401883151,1768395055024,-151.0,0.000269,7]
[401883153,1768395055032,-151.0,0.000269,7]
[401883155,1768395055041,-151.0,0.000269,7]
[401883172,1768395055198,-151.0,0.000269,7]
[401883175,1768395055208,-151.0,0.000269,7]
[401883177,1768395055218,-151.0,0.000269,7]
[401883178,1768395055227,-151.0,0.000269,7]
[401883180,1768395055236,-151.0,0.000269,7]
[401883182,1768395055245,-180.185459,0.000269,7]
[401883184,1768395055254,-241.541461,0.000269,7]
[401883186,1768395055263,-174.038823,0.000269,7]
[401883188,1768395055272,-174.038823,0.000269,7]
[401883190,1768395055282,-174.038823,0.000269,7]
[401883192,1768395055290,-174.038823,0.000269,7]
[401883194,1768395055300,-216.013567,0.000269,7]
[401883196,1768395055309,-216.013567,0.000269,7]
[401883198,1768395055318,-216.013567,0.000269,7]
[401883200,1768395055327,-151.0,0.000269,7]
[401883202,1768395055336,-216.013567,0.000269,7]
[401883204,1768395055345,-1032.1,0.00026934,2]
[401883206,1768395055355,-500.0,0.00026946,7]
[401883208,1768395055364,-2000.0,0.00026949,7]
[401883210,1768395055373,-1000.0,0.00026969,7]
[401883212,1768395055382,-4998.47179483,0.00026979,69]
[401883214,1768395055391,-1041.66666667,0.00027,7]
[401883216,1768395055400,-1020.0,0.00027,2]
[401883218,1768395055410,-2000.0,0.00027017,7]
[401883220,1768395055419,-3247.20552054,0.00027023,7]
[401883221,1768395055428,-19313.50358939,0.00027069,2]
[401883223,1768395055438,-500.0,0.00027077,7]
[401883225,1768395055447,-1000.0,0.000271,7]
[401883227,1768395055459,-1000.0,0.00027121,7]
[401883229,1768395055468,-266.0,0.00027151,23]
[401883231,1768395055478,-458.0,0.00027185,7]
[401883233,1768395055487,-160.0,0.00027216,7]
[401883235,1768395055496,-1000.0,0.00027226,7]
[401883237,1768395055505,-1000.0,0.00027266,30]
[401883239,1768395055515,-1000.0,0.00027266,30]
[401883241,1768395055524,-1000.0,0.00027266,30]
[401883243,1768395055534,-1000.0,0.0002727,7]
[401883245,1768395055543,-2840.37309884,0.00027288,2]
[401883247,1768395055553,-1607.07763483,0.00027318,2]
[401883249,1768395055562,-200.0,0.00027334,30]
[401883251,1768395055571,-200.0,0.00027334,30]
[401883253,1768395055580,-200.0,0.00027334,30]
[401883255,1768395055589,-1594.41498494,0.00027335,7]
[401883257,1768395055599,-1296.0967193,0.00027387,7]
[401883259,1768395055608,-591.12357233,0.00027389,7]
[401883261,1768395055617,-283.86166106,0.00027397,3]
[401883263,1768395055626,-650.0,0.00027397,5]
[401883265,1768395055635,-557.979687,0.00027397,3]
[401883266,1768395055644,-557.979687,0.00027397,3]
[401883268,1768395055653,-557.979687,0.00027397,3]
[401883270,1768395055662,-557.979687,0.00027397,3]
[401883272,1768395055671,-300.0,0.00027397,2]
[401883274,1768395055680,-300.0,0.00027397,2]
[401883276,1768395055688,-300.0,0.00027397,2]
[401883278,1768395055698,-300.0,0.00027397,2]
[401883280,1768395055707,-300.0,0.00027397,2]
[401883282,1768395055716,-300.0,0.00027397,2]
[401883284,1768395055725,-300.0,0.00027397,2]
[401883286,1768395055734,-300.0,0.00027397,2]
[401883288,1768395055743,-300.0,0.00027397,2]
[401883290,1768395055752,-151.0,0.00027397,7]
[401883292,1768395055761,-151.0,0.00027397,7]
[401883294,1768395055770,-295.309906,0.00027397,7]
[401883296,1768395055779,-157.45506808,0.00027397,5]
[401883298,1768395055789,-500.0,0.00027397,5]
[401883300,1768395055798,-500.0,0.00027397,15]
[401883302,1768395055809,-1650.0,0.00027397,5]
[401883304,1768395055819,-2148.17,0.000274,7]
[401883306,1768395055829,-2840.37309884,0.00027417,2]
[401883308,1768395055840,-1119.07702779,0.0002745,24]
[401883310,1768395055851,-160.0,0.00027594,8]
[401883312,1768395055860,-5000.0,0.00027626,2]
[401883314,1768395055869,-4131.39,0.00027671,4]
[401883316,1768395055879,-500.0,0.00027671,15]
[401883318,1768395055889,-2840.37309884,0.00027686,2]
[401883320,1768395055899,-157.32070626,0.00027697,5]
[401883322,1768395055908,-52886.368157,0.00027782,2]
[401883323,1768395055917,-255.526264,0.00027782,7]
[401883325,1768395055927,-151.0,0.00027782,7]
[401883327,1768395055936,-151.0,0.00027782,7]
[401883329,1768395055945,-189.222608,0.00027782,7]
[401883331,1768395055954,-879.438014,0.00027782,7]
[401883333,1768395055964,-879.438014,0.00027782,7]
[401883335,1768395055973,-879.438014,0.00027782,7]
[401883337,1768395055982,-879.438014,0.00027782,7]
[401883339,1768395055991,-5153.9751265,0.00027861,2]
[401883341,1768395056000,-750.0,0.00027945,5]
[401883343,1768395056010,-1000.0,0.00027945,5]
[401883345,1768395056019,-500.0,0.00027945,15]
[401883347,1768395056028,-1750.0,0.00027945,5]
[401883349,1768395056038,-250.0,0.00027945,5]
[401883351,1768395056047,-160.0,0.00027971,9]
[401883353,1768395056056,-1020.0,0.00028,2]
[401883355,1768395056066,-2840.37309884,0.00028093,2]
[401883357,1768395056075,-2000.0,0.00028164,7]
[401883359,1768395056085,-500.0,0.00028219,15]
[401883361,1768395056095,-265.0,0.00028247,28]
[401883363,1768395056104,-5215.6,0.000283,14]
[401883365,1768395056113,-1032.1,0.00028324,5]
[401883367,1768395056123,-160.0,0.00028349,10]
[401883369,1768395056132,-2840.37309884,0.00028383,2]
[401883371,1768395056141,-11434.83681079,0.00028406,2]
[401883373,1768395056150,-1119.07702779,0.00028489,25]
[401883374,1768395056160,-850.0,0.00028493,5]
[401883376,1768395056170,-500.0,0.00028493,15]
[401883378,1768395056181,-1349.80836073,0.00028493,5]
[401883380,1768395056191,-1850.0,0.00028493,5]
[401883382,1768395056202,-350.0,0.00028493,5]
[401883384,1768395056212,-167.77,0.000285,7]
[401883386,1768395056221,-38726.83,0.000285,2]
[401883388,1768395056231,-4998.47179483,0.00028505,78]
[401883390,1768395056242,-5000.0,0.00028555,2]
[401883393,1768395056252,-2840.37309884,0.00028575,2]
[401883394,1768395056264,-754.6654215,0.00028628,30]
[401883396,1768395056273,-377.5822533,0.00028628,30]
[401883398,1768395056282,-377.5822533,0.00028628,30]
[401883400,1768395056292,-697.47115536,0.00028629,2]
[401883402,1768395056300,-2789.88462145,0.00028629,2]
[401883404,1768395056310,-6270.96315787,0.00028629,2]
[401883406,1768395056319,-160.0,0.00028726,11]
[401883408,1768395056329,-500.0,0.00028767,15]
[401883409,1768395056338,-2840.37309884,0.00028787,2]
[401883410,1768395056347,-5000.0,0.000289,2]
[401883411,1768395056357,-336.89,0.000289,7]
[401883412,1768395056366,-339.58,0.000289,7]
[401883413,1768395056375,-160.0,0.00028989,3]
[401883414,1768395056384,-455.0,0.00028997,14]
[401883415,1768395056393,-1020.0,0.00029,2]
[401883416,1768395056403,-7472.80355642,0.0002902,2]
[401883418,1768395056412,-500.0,0.00029041,15]
[401883420,1768395056421,-950.0,0.00029041,5]
[401883422,1768395056430,-1006.71612592,0.00029041,5]
[401883424,1768395056439,-450.0,0.00029041,5]
[401883426,1768395056449,-160.0,0.00029104,12]
[401883428,1768395056458,-2000.0,0.00029148,10]
[401883430,1768395056467,-2000.0,0.00029157,10]
[401883432,1768395056477,-2000.0,0.00029165,10]
[401883434,1768395056486,-2000.0,0.00029174,10]
[401883436,1768395056494,-2000.0,0.00029183,10]
[401883438,1768395056503,-2000.0,0.00029192,10]
[401883440,1768395056512,-2000.0,0.00029201,10]
[401883442,1768395056521,-2000.0,0.00029209,10]
[401883444,1768395056530,-2000.0,0.00029218,10]
[401883446,1768395056539,-2000.0,0.00029227,10]
[401883448,1768395056548,-5701.24396159,0.00029232,2]
[401883450,1768395056557,-2000.0,0.00029236,10]
[401883452,1768395056567,-2000.0,0.00029245,10]
[401883454,1768395056576,-2000.0,0.00029253,10]
[401883456,1768395056585,-2000.0,0.00029262,10]
[401883458,1768395056595,-2000.0,0.00029271,10]
[401883460,1768395056604,-2840.37309884,0.00029279,2]
[401883462,1768395056613,-2000.0,0.0002928,10]
[401883464,1768395056622,-2000.0,0.00029289,10]
[401883466,1768395056632,-536.14997359,0.00029291,60]
[401883468,1768395056641,-714.86663146,0.00029291,60]
[401883470,1768395056650,-612.74282696,0.00029291,60]
[401883472,1768395056659,-2000.0,0.00029297,10]
[401883474,1768395056668,-2148.17,0.000293,7]
[401883476,1768395056677,-2000.0,0.00029306,10]
[401883478,1768395056686,-2000.0,0.00029315,10]
[401883480,1768395056695,-500.0,0.00029315,60]
[401883482,1768395056704,-500.0,0.00029315,60]
[401883484,1768395056713,-500.0,0.00029315,60]
[401883486,1768395056722,-500.0,0.00029315,60]
[401883488,1768395056731,-500.0,0.00029315,60]
[401883490,1768395056740,-240.44633049,0.00029315,60]
[401883492,1768395056749,-1591.0092294,0.00029315,10]
[401883494,1768395056759,-500.0,0.00029315,60]
[401883496,1768395056768,-500.0,0.00029315,60]
[401883498,1768395056778,-500.0,0.00029315,60]
[401883500,1768395056788,-870.0,0.00029315,60]
[401883502,1768395056797,-1198.0,0.00029315,120]
[401883504,1768395056807,-500.0,0.00029315,60]
[401883506,1768395056818,-500.0,0.00029315,60]
[401883508,1768395056827,-452.0,0.00029315,60]
[401883510,1768395056835,-4131.39,0.00029315,6]
[401883512,1768395056845,-500.0,0.00029315,60]
[401883514,1768395056854,-500.0,0.00029315,2]
[401883516,1768395056865,-500.0,0.00029315,15]
[401883518,1768395056874,-1717.48754868,0.00029318,2]
[401883520,1768395056884,-232.0,0.00029342,34]
[401883522,1768395056894,-257.56719903,0.00029393,60]
[401883524,1768395056903,-343.42293204,0.00029393,60]
[401883526,1768395056912,-257.56719903,0.00029393,60]
[401883528,1768395056922,-500.0,0.00029452,60]
[401883530,1768395056931,-500.0,0.00029452,60]
[401883532,1768395056940,-500.0,0.00029452,60]
[401883534,1768395056950,-500.0,0.00029452,60]
[401883536,1768395056958,-500.0,0.00029452,60]
[401883538,1768395056967,-500.0,0.00029452,60]
[401883540,1768395056977,-500.0,0.00029452,60]
[401883542,1768395056986,-500.0,0.00029452,60]
[401883544,1768395056996,-870.0,0.00029452,60]
[401883546,1768395057006,-1198.0,0.00029452,120]
[401883548,1768395057016,-500.0,0.00029452,60]
[401883550,1768395057024,-500.0,0.00029452,60]
[401883552,1768395057034,-452.0,0.00029452,60]
[401883554,1768395057043,-500.0,0.00029452,60]
[401883556,1768395057054,-500.0,0.00029452,2]
[401883558,1768395057064,-475.0,0.0002947,120]
[401883560,1768395057073,-475.0,0.0002947,120]
[401883562,1768395057082,-475.0,0.0002947,120]
[401883564,1768395057091,-475.0,0.0002947,120]
[401883566,1768395057100,-475.0,0.0002947,120]
[401883568,1768395057110,-589.69745305,0.0002947,5]
[401883570,1768395057119,-2840.3730989,0.00029477,2]
[401883572,1768395057128,-2000.0,0.00029479,7]
[401883574,1768395057137,-160.0,0.00029481,13]
[401883576,1768395057147,-5000.0,0.00029483,2]
[401883578,1768395057156,-728.0,0.00029496,3]
[401883580,1768395057165,-728.0,0.00029496,3]
[401883582,1768395057174,-475.0,0.000295,120]
[401883584,1768395057183,-1119.07702779,0.00029529,27]
[401883586,1768395057192,-1000.98,0.00029559,5]
[401883588,1768395057201,-100105.93,0.00029559,5]
[401883590,1768395057210,-194.2006467,0.0002958,30]
[401883592,1768395057218,-194.2006467,0.0002958,30]
[401883594,1768395057227,-194.2006467,0.0002958,30]
[401883596,1768395057236,-194.2006467,0.0002958,30]
[401883598,1768395057245,-460.7137439,0.0002958,30]
[401883600,1768395057254,-383.1513955,0.00029586,30]
[401883602,1768395057263,-755.1645066,0.00029586,30]
[401883604,1768395057272,-161.7818316,0.00029586,30]
[401883606,1768395057281,-200.88218581,0.00029589,60]
[401883608,1768395057291,-602.19565449,0.00029589,60]
[401883610,1768395057300,-500.0,0.00029589,60]
[401883612,1768395057309,-386.15760488,0.00029589,60]
[401883614,1768395057318,-500.0,0.00029589,60]
[401883616,1768395057326,-451.57208959,0.00029589,60]
[401883618,1768395057336,-500.0,0.00029589,60]
[401883620,1768395057346,-500.0,0.00029589,60]
[401883622,1768395057355,-500.0,0.00029589,60]
[401883624,1768395057364,-870.0,0.00029589,60]
[401883626,1768395057373,-1198.0,0.00029589,120]
[401883628,1768395057382,-500.0,0.00029589,60]
[401883630,1768395057391,-200.0,0.00029589,60]
[401883632,1768395057400,-421.56871784,0.00029589,60]
[401883634,1768395057409,-452.0,0.00029589,60]
[401883636,1768395057419,-200.0,0.00029589,60]
[401883638,1768395057428,-500.0,0.00029589,60]
[401883640,1768395057439,-500.0,0.00029589,2]
[401883641,1768395057448,-500.0,0.00029589,15]
[401883643,1768395057458,-1050.0,0.00029589,5]
[401883645,1768395057467,-550.0,0.00029589,5]
[401883647,1768395057476,-200.0,0.000296,120]
[401883649,1768395057485,-283.28863575,0.0002966,30]
[401883651,1768395057495,-377.718181,0.0002966,30]
[401883653,1768395057503,-283.28863575,0.0002966,30]
[401883670,1768395057655,-198.5598585,0.00029694,30]
[401883672,1768395057665,-2829.23463482,0.00029694,2]
[401883674,1768395057675,-18825.21902073,0.00029695,2]
[401883676,1768395057683,-3000.0,0.00029697,14]
[401883678,1768395057692,-1032.1,0.00029714,7]
[401883680,1768395057702,-200.0,0.00029726,60]
[401883682,1768395057711,-500.0,0.00029726,60]
[401883684,1768395057720,-622.17092249,0.00029726,60]
[401883686,1768395057730,-200.0,0.00029726,60]
[401883688,1768395057739,-500.0,0.00029726,60]
[401883690,1768395057749,-500.0,0.00029726,60]
[401883692,1768395057759,-870.0,0.00029726,60]
[401883694,1768395057768,-1198.0,0.00029726,120]
[401883696,1768395057777,-580.25340699,0.00029726,60]
[401883698,1768395057787,-452.0,0.00029726,60]
[401883699,1768395057796,-500.0,0.00029726,60]
[401883702,1768395057806,-500.0,0.00029726,2]
[401883704,1768395057819,-475.0,0.00029747,120]
[401883706,1768395057828,-475.0,0.00029747,120]
[401883708,1768395057837,-475.0,0.00029747,120]
[401883710,1768395057847,-160.0,0.00029781,3]
[401883711,1768395057856,-455912.6,0.000298,5]
[401883714,1768395057865,-641.0,0.00029814,120]
[401883715,1768395057876,-728.0,0.00029816,3]
[401883717,1768395057889,-160.0,0.00029859,14]
[401883720,1768395057899,-271.58859514,0.00029863,60]
[401883721,1768395057908,-500.0,0.00029863,60]
[401883723,1768395057918,-500.0,0.00029863,60]
[401883725,1768395057927,-500.0,0.00029863,60]
[401883727,1768395057937,-191.14675922,0.00029863,60]
[401883729,1768395057948,-870.0,0.00029863,60]
[401883731,1768395057957,-1198.0,0.00029863,120]
[401883733,1768395057966,-452.0,0.00029863,60]
[401883735,1768395057975,-374.08615076,0.00029863,60]
[401883737,1768395057984,-500.0,0.00029863,2]
[401883739,1768395057994,-500.0,0.00029863,15]
[401883741,1768395058003,-38726.83,0.000299,2]
[401883743,1768395058012,-200.0,0.0003,60]
[401883745,1768395058021,-157.49285757,0.0003,60]